fUST/lending_fUST_20241110
["ID","MTS","AMOUNT","RATE_DAILY","PERIOD"]
[341747430,1731187840091,-974.86,0.00030684,2]
[341747431,1731187840102,-500.0,0.00030684,2]
[341747432,1731187840111,-500.0,0.00030684,120]
[341747433,1731187840120,-824.91,0.00030684,2]
[341747434,1731187840129,-505.31814526,0.00030684,2]
[341747435,1731187840138,-500.0,0.00030684,2]
[341747436,1731187840148,-253.824272,0.0003074,30]
[341747437,1731187840157,-153.0,0.0003074,30]
[341747438,1731187840167,-153.0,0.0003074,30]
[341747439,1731187840176,-153.0,0.0003074,30]
[341747440,1731187840185,-153.0,0.0003074,30]
[341747441,1731187840194,-153.0,0.0003074,30]
[341747442,1731187840203,-153.0,0.0003074,30]
[341747443,1731187840212,-153.0,0.0003074,30]
[341747444,1731187840221,-3644.9,0.00030743,30]
[341747445,1731187840230,-305.9382545,0.00030877,30]
[341747446,1731187840239,-500.0,0.00030925,2]
[341747447,1731187840249,-500.0,0.00030958,2]
[341747448,1731187840259,-502.66914012,0.00030958,14]
[341747449,1731187840269,-974.86,0.00030958,2]
[341747450,1731187840279,-500.0,0.00030958,2]
[341747451,1731187840291,-500.0,0.00030958,120]
[341747452,1731187840301,-824.91,0.00030958,2]
[341747453,1731187840311,-500.0,0.00030958,2]
[341747454,1731187840321,-271.46819148,0.00031132,2]
[341747455,1731187840332,-99998.999999,0.000312,2]
[341747456,1731187840343,-500.0,0.00031232,2]
[341747457,1731187840353,-974.86,0.00031232,2]
[341747458,1731187840363,-500.0,0.00031232,2]
[341747459,1731187840372,-500.0,0.00031232,120]
[341747460,1731187840381,-824.91,0.00031232,2]
[341747461,1731187840392,-500.0,0.00031232,2]
[341747462,1731187840401,-500.0,0.00031262,2]
[341747463,1731187840412,-368.09,0.00031262,2]
[341747464,1731187840422,-500.0,0.00031262,2]
[341747465,1731187840431,-500.0,0.00031272,2]
[341747466,1731187840440,-500.0,0.00031272,2]
[341747467,1731187840449,-500.0,0.00031272,2]
[341747468,1731187840459,-500.0,0.00031373,7]
[341747469,1731187840468,-930.55812136,0.00031377,2]
[341747470,1731187840477,-1000.0,0.00031477,2]
[341747471,1731187840486,-500.0,0.00031481,2]
[341747472,1731187840497,-2500.0,0.00031482,3]
[341747473,1731187840506,-1634.81125647,0.00031487,4]
[341747474,1731187840516,-3859.44,0.0003149,120]
[341747475,1731187840525,-2500.0,0.00031491,3]
[341747476,1731187840534,-2500.0,0.000315,3]
[341747477,1731187840546,-256.63,0.000315,31]
[341747478,1731187840556,-256.63,0.000315,31]
[341747479,1731187840566,-256.63,0.000315,31]
[341747480,1731187840575,-256.63,0.000315,31]
[341747481,1731187840587,-256.63,0.000315,31]
[341747482,1731187840597,-256.63,0.000315,31]
[341747483,1731187840613,-256.63,0.000315,31]
[341747484,1731187840622,-256.63,0.000315,31]
[341747485,1731187840631,-256.63,0.000315,31]
[341747486,1731187840640,-256.63,0.000315,31]
[341747487,1731187840649,-256.63,0.000315,31]
[341747488,1731187840658,-256.63,0.000315,31]
[341747489,1731187840667,-500.0,0.00031506,2]
[341747490,1731187840676,-974.86,0.00031506,2]
[341747491,1731187840685,-228.9,0.00031506,2]
[341747492,1731187840694,-500.0,0.00031506,120]
[341747493,1731187840703,-824.91,0.00031506,2]
[341747494,1731187840712,-500.0,0.00031506,2]
[341747495,1731187840721,-2500.0,0.00031508,3]
[341747496,1731187840730,-500.0,0.00031516,2]
[341747497,1731187840831,-2500.0,0.00031517,3]
[341747498,1731187840842,-2500.0,0.00031526,3]
[341747499,1731187840856,-1417.64416983,0.00031526,3]
[341747500,1731187840865,-727.43987457,0.00031593,2]
[341747501,1731187840875,-1000.0,0.00031593,2]
[341747502,1731187840884,-8217.19251415,0.000316,2]
[341747503,1731187840893,-8217.19251413,0.000316,2]
[341747504,1731187840901,-8217.19251413,0.000316,2]
[341747505,1731187840911,-8217.19251413,0.000316,2]
[341747506,1731187840920,-2626.34841864,0.000316,15]
[341747507,1731187840929,-500.0,0.000316,36]
[341747508,1731187840938,-435.57,0.000316,2]
[341747509,1731187840948,-500.0,0.00031623,2]
[341747510,1731187840958,-529.0,0.00031662,2]
[341747511,1731187840968,-1155.0,0.00031662,2]
[341747512,1731187840979,-2392.0,0.00031662,2]
[341747513,1731187840990,-500.0,0.00031672,2]
[341747514,1731187841002,-500.0,0.00031673,5]
[341747515,1731187841011,-557.17522074,0.00031673,5]
[341747516,1731187841022,-500.0,0.00031673,5]
[341747517,1731187841032,-500.4355933,0.00031673,5]
[341747518,1731187841042,-13448.19012576,0.00031673,2]
[341747519,1731187841052,-500.0,0.00031692,2]
[341747520,1731187841062,-500.0,0.00031692,2]
[341747521,1731187841071,-500.0,0.00031692,2]
[341747522,1731187841081,-500.0,0.00031692,2]
[341747523,1731187841090,-500.0,0.00031692,2]
[341747524,1731187841101,-500.0,0.00031692,2]
[341747525,1731187841110,-500.0,0.00031692,2]
[341747526,1731187841119,-500.0,0.00031692,2]
[341747527,1731187841128,-387.9222241,0.00031692,2]
[341747528,1731187841137,-624.92,0.00031692,2]
[341747529,1731187841147,-343.37045171,0.00031693,2]
[341747530,1731187841156,-172.19389509,0.00031693,2]
[341747531,1731187841165,-151.0,0.00031693,7]
[341747532,1731187841175,-1538.22027913,0.00031693,2]
[341747533,1731187841184,-151.0,0.00031693,7]
[341747534,1731187841194,-151.0,0.00031693,7]
[341747535,1731187841203,-151.0,0.00031693,7]
[341747536,1731187841213,-151.0,0.00031693,7]
[341747537,1731187841222,-151.0,0.00031693,7]
[341747538,1731187841231,-151.0,0.00031693,7]
[341747539,1731187841240,-151.0,0.00031693,7]
[341747540,1731187841249,-178.868406,0.00031693,7]
[341747541,1731187841258,-465.258182,0.00031693,28]
[341747542,1731187841267,-151.0,0.00031693,7]
[341747543,1731187841276,-151.0,0.00031693,7]
[341747544,1731187841286,-151.0,0.00031693,7]
[341747545,1731187841295,-151.0,0.00031693,7]
[341747546,1731187841305,-151.0,0.00031693,7]
[341747547,1731187841314,-211.630375,0.00031693,7]
[341747548,1731187841323,-151.0,0.00031693,7]
[341747549,1731187841332,-151.0,0.00031693,7]
[341747550,1731187841341,-151.0,0.00031693,7]
[341747551,1731187841350,-151.0,0.00031693,2]
[341747552,1731187841360,-151.0,0.00031693,7]
[341747553,1731187841369,-151.0,0.00031693,7]
[341747554,1731187841378,-151.0,0.00031693,7]
[341747555,1731187841387,-151.0,0.00031693,7]
[341747556,1731187841396,-151.0,0.00031693,7]
[341747557,1731187841406,-200.24109776,0.00031693,7]
[341747558,1731187841418,-151.0,0.00031693,7]
[341747559,1731187841427,-151.0,0.00031693,7]
[341747560,1731187841436,-239.91711,0.00031693,7]
[341747561,1731187841445,-151.0,0.00031693,7]
[341747562,1731187841454,-543.838658,0.00031693,7]
[341747563,1731187841463,-543.838658,0.00031693,7]
[341747564,1731187841472,-543.838658,0.00031693,7]
[341747565,1731187841482,-543.838658,0.00031693,7]
[341747566,1731187841491,-543.838658,0.00031693,7]
[341747567,1731187841499,-543.838658,0.00031693,7]
[341747568,1731187841508,-543.838658,0.00031693,7]
[341747569,1731187841517,-543.838658,0.00031693,7]
[341747570,1731187841526,-543.838658,0.00031693,7]
[341747571,1731187841536,-543.838658,0.00031693,7]
[341747572,1731187841545,-543.838658,0.00031693,7]
[341747573,1731187841554,-543.838658,0.00031693,7]
[341747574,1731187841563,-543.838658,0.00031693,7]
[341747575,1731187841572,-543.838658,0.00031693,7]
[341747576,1731187841581,-282.323668,0.00031693,7]
[341747577,1731187841590,-1656838.41625612,0.00031693,10]
[341747578,1731187841607,-570.00975429,0.00031693,10]
[341747579,1731187841665,-607.63888889,0.00023545,2]
[341747580,1731187841674,-217.74090148,0.00030136,2]
[341747581,1731187841690,-282.25909852,0.00030136,2]
[341747582,1731187841699,-64.37976241,0.00031693,10]
[341747586,1731187843096,-19.98341226,0.00025,14]
[341747587,1731187843115,-794.09658774,0.00025,14]
[341747588,1731187843124,-1632.06387589,0.00031693,10]
[341747602,1731187846088,-394.4,0.00024973,2]
[341747618,1731188031035,164.403598,0.00013973,2]
[341747621,1731188461325,607.63888889,0.00020844,2]
[341747640,1731188726284,164.403598,0.00013973,2]
[341747652,1731189026342,607.63888889,0.00020844,2]
[341747814,1731189038256,-377.14506679,0.00025,2]
[341747815,1731189038268,-164.403598,0.00026274,2]
[341747817,1731189038279,-607.63888889,0.00026274,2]
[341747818,1731189038291,-500.0,0.00030136,2]
[341747819,1731189038302,-500.0,0.00030136,2]
[341747820,1731189038314,-161.58683845,0.00030137,2]
[341747821,1731189038325,-152.76035625,0.00030153,2]
[341747822,1731189038337,-500.0,0.00030409,7]
[341747823,1731189038347,-300.0,0.00030409,2]
[341747824,1731189038357,-400.0,0.00030409,2]
[341747825,1731189038367,-500.0,0.0003041,2]
[341747826,1731189038378,-500.0,0.0003041,2]
[341747827,1731189038388,-277.95487301,0.00030684,2]
[341747828,1731189038398,-156.998,0.000309,2]
[341747829,1731189038408,-1769.0,0.00031,15]
[341747830,1731189038419,-930.55812136,0.00031351,2]
[341747831,1731189038429,-15703.60179631,0.00031351,2]
[341747832,1731189038441,-6100.15334798,0.00031379,2]
[341747833,1731189038451,-1836.73071756,0.000314,2]
[341747834,1731189038463,-1836.73071755,0.00031424,2]
[341747835,1731189038474,-1836.73071755,0.00031448,2]
[341747836,1731189038484,-1836.73071755,0.00031472,2]
[341747837,1731189038495,-433.41831073,0.00031496,7]
[341747838,1731189038505,-1836.73071755,0.00031496,2]
[341747839,1731189038515,-228.9,0.00031499,2]
[341747840,1731189038524,-500.0,0.00031499,2]
[341747841,1731189038534,-653.05,0.00031499,2]
[341747842,1731189038544,-294.52,0.000315,31]
[341747843,1731189038554,-294.52,0.000315,31]
[341747844,1731189038565,-294.52,0.000315,31]
[341747845,1731189038576,-294.52,0.000315,31]
[341747846,1731189038587,-294.52,0.000315,31]
[341747847,1731189038598,-294.52,0.000315,31]
[341747848,1731189038608,-294.52,0.000315,31]
[341747849,1731189038619,-294.52,0.000315,31]
[341747850,1731189038629,-294.52,0.000315,31]
[341747851,1731189038640,-294.52,0.000315,31]
[341747852,1731189038650,-294.52,0.000315,31]
[341747853,1731189038660,-294.52,0.000315,31]
[341747854,1731189038670,-800.95,0.00031505,2]
[341747855,1731189038681,-500.0,0.00031505,10]
[341747856,1731189038691,-2500.0,0.00031508,3]
[341747857,1731189038701,-2500.0,0.00031517,3]
[341747858,1731189038711,-2500.0,0.00031517,3]
[341747859,1731189038722,-1836.73071755,0.0003152,2]
[341747860,1731189038732,-2500.0,0.00031526,3]
[341747861,1731189038742,-2500.0,0.00031526,3]
[341747862,1731189038752,-1836.73071755,0.00031544,2]
[341747863,1731189038762,-500.0,0.00031558,2]
[341747864,1731189038773,-500.0,0.00031567,120]
[341747865,1731189038784,-1000.0,0.00031568,2]
[341747866,1731189038795,-1175.21324658,0.00031568,2]
[341747867,1731189038805,-727.43987457,0.00031568,2]
[341747868,1731189038815,-1836.73071755,0.00031568,2]
[341747869,1731189038825,-1000.0,0.0003159,2]
[341747870,1731189038837,-253.84,0.0003159,3]
[341747871,1731189038847,-761.56,0.0003159,3]
[341747872,1731189038857,-807.82,0.0003159,10]
[341747873,1731189038868,-500.0,0.00031599,2]
[341747874,1731189038880,-500.0,0.00031599,2]
[341747875,1731189038890,-6162.89438562,0.000316,2]
[341747876,1731189038900,-6162.89438559,0.000316,2]
[341747877,1731189038910,-6162.89438559,0.000316,2]
[341747878,1731189038921,-6162.89438559,0.000316,2]
[341747879,1731189038931,-2054.29812856,0.000316,2]
[341747880,1731189038941,-2054.29812853,0.000316,2]
[341747881,1731189039080,-2054.29812853,0.000316,2]
[341747882,1731189039093,-2054.29812853,0.000316,2]
[341747883,1731189039102,-500.0,0.000316,36]
[341747884,1731189039112,-435.57,0.000316,2]
[341747885,1731189039122,-500.0,0.00031666,2]
[341747886,1731189039131,-201.437,0.00031667,2]
[341747887,1731189039140,-1159.0,0.00031667,2]
[341747888,1731189039149,-529.0,0.00031667,2]
[341747889,1731189039158,-2392.0,0.00031667,2]
[341747890,1731189039168,-500.0,0.00031667,2]
[341747891,1731189039177,-208.06448406,0.00031667,2]
[341747892,1731189039186,-371.83753804,0.00031667,2]
[341747893,1731189039196,-498.79719405,0.00031667,2]
[341747894,1731189039205,-226.23439308,0.00031667,2]
[341747895,1731189039215,-500.0,0.00031667,2]
[341747896,1731189039224,-172.15348637,0.00031667,2]
[341747897,1731189039234,-203.78198719,0.00031667,2]
[341747898,1731189039243,-383.34511685,0.00031667,2]
[341747899,1731189039252,-500.0,0.00031667,2]
[341747900,1731189039261,-500.0,0.00031667,2]
[341747901,1731189039271,-500.0,0.00031667,2]
[341747902,1731189039280,-500.0,0.00031667,2]
[341747903,1731189039289,-151.0,0.00031667,7]
[341747904,1731189039298,-151.0,0.00031667,7]
[341747905,1731189039308,-151.0,0.00031667,7]
[341747906,1731189039317,-151.0,0.00031667,7]
[341747907,1731189039327,-151.0,0.00031667,7]
[341747908,1731189039336,-257.645527,0.00031667,7]
[341747909,1731189039345,-3859.44,0.00031667,120]
[341747910,1731189039354,-624.92,0.00031667,2]
[341747911,1731189039363,-500.0,0.00031667,2]
[341747912,1731189039372,-500.0,0.00031667,2]
[341747913,1731189039381,-500.0,0.00031667,2]
[341747914,1731189039390,-500.0,0.00031667,2]
[341747915,1731189039400,-500.0,0.00031667,2]
[341747916,1731189039409,-500.0,0.00031667,2]
[341747917,1731189039418,-500.0,0.00031667,2]
[341747918,1731189039428,-253.06649085,0.00031667,2]
[341747919,1731189039438,-343.37045171,0.00031667,2]
[341747920,1731189039448,-172.19389509,0.00031667,2]
[341747921,1731189039458,-433.41831073,0.00031668,7]
[341747922,1731189039467,-433.41831073,0.00031668,7]
[341747923,1731189039476,-1657311.69548881,0.00031668,10]
[341747924,1731189039489,-508.12822745,0.00031668,10]
[341747931,1731189040127,-500.0,0.00030684,2]
[341747932,1731189040136,-500.0,0.00030958,2]
[341747933,1731189040145,-242.05032966,0.00031232,2]
[341747934,1731189040157,-257.94967034,0.00031232,2]
[341747935,1731189040166,-102.94048597,0.00031506,2]
[341747964,1731189471157,169.623317,0.00013973,2]
[341747965,1731189646651,5000.0,0.0003167,120]
[341747966,1731189661949,602.61013765,0.0003167,30]
[341748010,1731189903083,607.63888889,0.00020844,2]
[341748037,1731190141024,159.465611,0.00013973,2]
[341748052,1731190232379,-159.465611,0.00023435,2]
[341748054,1731190232390,-262.02704546,0.00026063,2]
[341748056,1731190232402,-345.61184343,0.00026063,2]
[341748058,1731190232411,-500.0,0.00027858,7]
[341748060,1731190232422,-203.35994,0.00028,120]
[341748063,1731190232432,-300.0,0.00029258,2]
[341748065,1731190232441,-1646.25549047,0.00029259,2]
[341748069,1731190232474,-1334.231,0.00029259,2]
[341748131,1731190238515,-21919.51350953,0.00029259,2]
[341748132,1731190238525,-964.8785612,0.00029324,2]
[341748133,1731190238535,-500.0,0.00030136,2]
[341748135,1731190238545,-500.0,0.00030136,2]
[341748137,1731190238555,-500.0,0.00030136,2]
[341748139,1731190238565,-517.37667181,0.00030136,2]
[341748140,1731190238574,-500.0,0.00030136,2]
[341748141,1731190238584,-501.49700503,0.00030136,2]
[341748142,1731190238593,-511.55542172,0.00030136,2]
[341748143,1731190238603,-503.63123892,0.00030136,2]
[341748144,1731190238612,-503.24265417,0.00030136,2]
[341748146,1731190238621,-503.17028996,0.00030136,2]
[341748147,1731190238631,-194.33003059,0.00030137,2]
[341748148,1731190238640,-173.076,0.00030586,2]
[341748149,1731190238649,-156.976,0.0003059,2]
[341748150,1731190238659,-253.84,0.0003099,3]
[341748151,1731190238668,-761.56,0.0003099,3]
[341748152,1731190238678,-389.57,0.0003099,10]
[341748153,1731190238687,-500.0,0.00030999,2]
[341748154,1731190238696,-383.63733801,0.00030999,2]
[341748155,1731190238706,-500.0,0.00030999,2]
[341748156,1731190238715,-500.0,0.00030999,2]
[341748157,1731190238724,-500.0,0.00030999,2]
[341748158,1731190238733,-500.0,0.00030999,2]
[341748159,1731190238742,-510.72024752,0.00030999,2]
[341748160,1731190238752,-500.0,0.00030999,2]
[341748161,1731190238763,-500.0,0.00030999,2]
[341748162,1731190238772,-500.0,0.00030999,2]
[341748163,1731190238782,-500.0,0.00030999,2]
[341748164,1731190238792,-81298.0,0.00031,2]
[341748165,1731190238802,-655.24572012,0.00031,7]
[341748166,1731190238811,-153.0,0.00031087,2]
[341748167,1731190238821,-6511.91200691,0.0003126,2]
[341748168,1731190238830,-961.23159464,0.00031317,2]
[341748169,1731190238840,-791.15,0.00031349,2]
[341748170,1731190238850,-537.16,0.0003135,2]
[341748171,1731190238859,-500.0,0.0003135,2]
[341748172,1731190238868,-343.19,0.0003135,2]
[341748173,1731190238877,-1351.38478922,0.00031354,2]
[341748174,1731190238886,-72523.7162983,0.00031354,2]
[341748175,1731190238895,-961.23159462,0.0003138,2]
[341748176,1731190238904,-961.23159462,0.00031444,2]
[341748177,1731190238919,-1000.0,0.0003147,2]
[341748178,1731190238928,-200.0,0.00031499,2]
[341748179,1731190238937,-515.91111743,0.00031499,2]
[341748180,1731190238947,-531.18029616,0.00031499,2]
[341748181,1731190238956,-500.0,0.00031499,2]
[341748182,1731190238965,-509.01833383,0.00031499,2]
[341748183,1731190238975,-503.05333328,0.00031499,2]
[341748184,1731190238984,-510.27684507,0.00031499,2]
[341748185,1731190238994,-500.0,0.00031499,2]
[341748186,1731190239004,-500.0,0.00031499,2]
[341748187,1731190239013,-2500.0,0.000315,3]
[341748188,1731190239022,-289.33,0.000315,31]
[341748189,1731190239033,-289.33,0.000315,31]
[341748190,1731190239043,-289.33,0.000315,31]
[341748191,1731190239052,-289.33,0.000315,31]
[341748192,1731190239062,-289.33,0.000315,31]
[341748193,1731190239071,-289.33,0.000315,31]
[341748194,1731190239084,-289.33,0.000315,31]
[341748195,1731190239100,-289.33,0.000315,31]
[341748196,1731190239111,-289.33,0.000315,31]
[341748197,1731190239124,-289.33,0.000315,31]
[341748198,1731190239136,-289.33,0.000315,31]
[341748199,1731190239148,-289.33,0.000315,31]
[341748200,1731190239161,-961.23159462,0.00031507,2]
[341748201,1731190239173,-500.0,0.00031507,2]
[341748202,1731190239185,-500.0,0.00031507,2]
[341748203,1731190239195,-500.0,0.00031508,2]
[341748204,1731190239205,-995.05,0.00031508,2]
[341748205,1731190239216,-500.0,0.00031508,2]
[341748206,1731190239227,-500.0,0.00031508,2]
[341748207,1731190239238,-500.0,0.00031508,120]
[341748208,1731190239250,-500.0,0.00031508,2]
[341748209,1731190239260,-2500.0,0.00031508,3]
[341748210,1731190239271,-2500.0,0.00031508,3]
[341748211,1731190239283,-2500.0,0.00031517,3]
[341748212,1731190239295,-1417.64416983,0.00031526,3]
[341748213,1731190239308,-2500.0,0.00031526,3]
[341748214,1731190239321,-420.0,0.00031558,2]
[341748215,1731190239332,-405.90978424,0.00031567,2]
[341748216,1731190239343,-500.0,0.00031567,2]
[341748217,1731190239355,-500.0,0.00031567,2]
[341748218,1731190239366,-500.0,0.00031567,2]
[341748219,1731190239378,-500.0,0.00031567,2]
[341748220,1731190239392,-500.0,0.00031567,2]
[341748221,1731190239404,-727.43987457,0.0003157,2]
[341748222,1731190239416,-961.23159462,0.0003157,2]
[341748223,1731190239426,-1000.0,0.0003157,2]
[341748224,1731190239437,-500.0,0.00031598,2]
[341748225,1731190239448,-500.0,0.00031598,2]
[341748226,1731190239459,-500.0,0.00031599,7]
[341748227,1731190239470,-500.0,0.00031599,2]
[341748228,1731190239481,-500.0,0.00031599,2]
[341748229,1731190239491,-1027.14906428,0.000316,2]
[341748230,1731190239503,-1027.14906426,0.000316,2]
[341748231,1731190239514,-1027.14906426,0.000316,2]
[341748232,1731190239526,-1027.14906426,0.000316,2]
[341748233,1731190239539,-7190.04344987,0.000316,2]
[341748234,1731190239550,-7190.04344987,0.000316,2]
[341748235,1731190239561,-7190.04344987,0.000316,2]
[341748236,1731190239571,-7190.04344987,0.000316,2]
[341748237,1731190239580,-435.57,0.000316,2]
[341748238,1731190239590,-500.0,0.000316,36]
[341748239,1731190239600,-791.15,0.00031623,2]
[341748240,1731190239612,-500.0,0.00031662,2]
[341748241,1731190239623,-500.0,0.00031663,2]
[341748242,1731190239633,-3859.44,0.00031663,120]
[341748243,1731190239644,-151.0,0.00031664,7]
[341748244,1731190239655,-151.0,0.00031664,7]
[341748245,1731190239666,-151.0,0.00031664,7]
[341748246,1731190239677,-151.0,0.00031664,7]
[341748247,1731190239687,-151.0,0.00031664,7]
[341748248,1731190239698,-151.0,0.00031664,7]
[341748249,1731190239710,-151.0,0.00031664,7]
[341748250,1731190239720,-178.868406,0.00031664,7]
[341748251,1731190239731,-465.258182,0.00031664,28]
[341748252,1731190239743,-151.0,0.00031664,7]
[341748253,1731190239755,-153.052964,0.00031664,7]
[341748254,1731190239766,-634.239014,0.00031664,7]
[341748255,1731190239779,-151.0,0.00031664,7]
[341748256,1731190239790,-634.239014,0.00031664,7]
[341748257,1731190239802,-634.239014,0.00031664,7]
[341748258,1731190239814,-634.239014,0.00031664,7]
[341748259,1731190239825,-634.239014,0.00031664,7]
[341748260,1731190239835,-634.239014,0.00031664,7]
[341748261,1731190239845,-634.239014,0.00031664,7]
[341748262,1731190239854,-634.239014,0.00031664,7]
[341748264,1731190239864,-634.239014,0.00031664,7]
[341748265,1731190239874,-634.239014,0.00031664,7]
[341748267,1731190239884,-634.239014,0.00031664,7]
[341748269,1731190239895,-634.239014,0.00031664,7]
[341748271,1731190239906,-634.239014,0.00031664,7]
[341748273,1731190239918,-634.239014,0.00031664,7]
[341748275,1731190239930,-634.239014,0.00031664,7]
[341748276,1731190239941,-634.239014,0.00031664,7]
[341748277,1731190239953,-634.239014,0.00031664,7]
[341748278,1731190239964,-634.239014,0.00031664,7]
[341748279,1731190239974,-151.0,0.00031664,7]
[341748280,1731190239984,-151.0,0.00031664,7]
[341748281,1731190239994,-151.0,0.00031664,7]
[341748282,1731190240004,-151.0,0.00031664,7]
[341748283,1731190240014,-257.645527,0.00031664,7]
[341748284,1731190240024,-500.0,0.00031666,2]
[341748285,1731190240036,-500.0,0.00031666,2]
[341748286,1731190240047,-150.0,0.00031667,2]
[341748287,1731190240058,-202.202,0.00031667,2]
[341748288,1731190240068,-1130.0,0.00031667,2]
[341748289,1731190240078,-529.0,0.00031667,2]
[341748290,1731190240087,-2392.0,0.00031667,2]
[341748292,1731190240097,-2545.08520786,0.00031668,4]
[341748294,1731190240107,-151.0,0.00031668,7]
[341748296,1731190240118,-151.0,0.00031668,7]
[341748297,1731190240128,-152.675519,0.00031668,7]
[341748298,1731190240137,-151.0,0.00031668,7]
[341748299,1731190240148,-151.0,0.00031668,7]
[341748300,1731190240158,-288.97883,0.00031668,7]
[341748301,1731190240167,-151.0,0.00031668,3]
[341748302,1731190240177,-151.0,0.00031668,3]
[341748303,1731190240188,-151.0,0.00031668,3]
[341748304,1731190240197,-151.0,0.00031668,3]
[341748305,1731190240207,-151.0,0.00031668,3]
[341748306,1731190240218,-263.070447,0.00031668,3]
[341748307,1731190240228,-417.57736081,0.00031669,2]
[341748308,1731190240237,-287.15047328,0.00031669,2]
[341748309,1731190240248,-320.5923104,0.00031669,2]
[341748310,1731190240259,-500.0,0.00031669,2]
[341748311,1731190240269,-500.0,0.00031669,2]
[341748312,1731190240280,-172.15348637,0.00031669,2]
[341748313,1731190240290,-500.0,0.00031669,2]
[341748314,1731190240300,-382.2433323,0.00031669,2]
[341748315,1731190240315,-383.34511685,0.00031669,2]
[341748316,1731190240325,-277.72010105,0.00031669,2]
[341748317,1731190240336,-500.0,0.00031669,2]
[341748318,1731190240346,-500.0,0.00031669,2]
[341748319,1731190240357,-500.0,0.00031669,2]
[341748320,1731190240367,-500.0,0.00031669,2]
[341748321,1731190240378,-151.0,0.0003167,7]
[341748322,1731190240389,-151.0,0.0003167,7]
[341748323,1731190240400,-151.0,0.0003167,7]
[341748324,1731190240410,-151.0,0.0003167,7]
[341748325,1731190240420,-151.0,0.0003167,7]
[341748326,1731190240430,-200.24109776,0.0003167,7]
[341748327,1731190240558,-151.0,0.0003167,7]
[341748328,1731190240570,-151.0,0.0003167,7]
[341748329,1731190240580,-151.0,0.0003167,7]
[341748330,1731190240589,-151.0,0.0003167,7]
[341748331,1731190240598,-151.0,0.0003167,7]
[341748332,1731190240607,-151.0,0.0003167,7]
[341748333,1731190240616,-151.0,0.0003167,7]
[341748334,1731190240625,-151.0,0.0003167,7]
[341748335,1731190240634,-151.0,0.0003167,7]
[341748336,1731190240644,-153.491646,0.0003167,7]
[341748337,1731190240653,-282.323668,0.0003167,7]
[341748338,1731190240663,-176.0,0.0003167,30]
[341748339,1731190240672,-151.0,0.0003167,7]
[341748340,1731190240681,-151.0,0.0003167,7]
[341748341,1731190240690,-151.0,0.0003167,7]
[341748342,1731190240699,-151.0,0.0003167,7]
[341748343,1731190240708,-151.0,0.0003167,7]
[341748344,1731190240717,-211.630375,0.0003167,7]
[341748345,1731190240725,-151.0,0.0003167,7]
[341748346,1731190240734,-151.0,0.0003167,7]
[341748347,1731190240743,-151.0,0.0003167,2]
[341748348,1731190240752,-500.0,0.0003167,2]
[341748349,1731190240761,-500.0,0.0003167,2]
[341748350,1731190240770,-500.0,0.0003167,2]
[341748351,1731190240780,-500.0,0.0003167,2]
[341748352,1731190240789,-500.0,0.0003167,2]
[341748353,1731190240797,-500.0,0.0003167,2]
[341748354,1731190240806,-500.0,0.0003167,2]